fUSD/lending_fUSD_20250823
["ID","MTS","AMOUNT","RATE_DAILY","PERIOD"]
[380945514,1755909155609,-667.33,0.0001589,2]
[380945515,1755909155619,-556.68,0.0001589,2]
[380945516,1755909155628,-440.79,0.0001589,2]
[380945517,1755909155638,-634.38,0.0001589,2]
[380945518,1755909155648,-1376.17,0.0001589,2]
[380945519,1755909155657,-400.0,0.0001589,2]
[380945520,1755909155666,-769.3,0.0001589,2]
[380945521,1755909155676,-661.11,0.0001589,2]
[380945522,1755909155685,-811.19,0.0001589,2]
[380945523,1755909155694,-400.0,0.0001589,2]
[380945524,1755909155703,-531.99,0.0001589,2]
[380945525,1755909155713,-421.79,0.0001589,2]
[380945526,1755909155722,-913.58,0.0001589,2]
[380945527,1755909155731,-657.18,0.0001589,2]
[380945528,1755909155741,-984.19,0.0001589,2]
[380945529,1755909155750,-641.16,0.0001589,2]
[380945530,1755909155760,-490.26,0.0001589,2]
[380945531,1755909155770,-472.42,0.0001589,2]
[380945532,1755909155779,-1002.95,0.0001589,2]
[380945533,1755909155790,-884.67,0.0001589,2]
[380945534,1755909155801,-400.0,0.0001589,2]
[380945535,1755909155811,-1152.0,0.00015899,2]
[380945536,1755909155822,-719.92223109,0.00015921,2]
[380945537,1755909155832,-1000.0,0.00015921,2]
[380945538,1755909155842,-1000.0,0.00015921,2]
[380945539,1755909155852,-1000.0,0.00015921,2]
[380945540,1755909155862,-1000.0,0.00015921,2]
[380945541,1755909155871,-467.63424817,0.00015921,2]
[380945542,1755909155880,-1000.0,0.00015921,2]
[380945543,1755909155890,-1000.0,0.00015921,2]
[380945544,1755909155900,-196.76805103,0.00015928,7]
[380945545,1755909155910,-4609.0,0.00015957,2]
[380945546,1755909155920,-1000.0,0.00015984,2]
[380945547,1755909155930,-775008.1159699,0.00015998,2]
[380945548,1755909155939,-70851.41664627,0.00015999,2]
[380945549,1755909155949,-544.10510626,0.00016,2]
[380945550,1755909155959,-1000.0,0.00016,2]
[380945551,1755909155971,-5000.0,0.00016,2]
[380945552,1755909155980,-5016.487807,0.00016,2]
[380945553,1755909155990,-2412.32911814,0.00016,2]
[380945554,1755909156000,-200.0,0.00016,2]
[380945555,1755909156010,-1000.0,0.00016034,2]
[380945556,1755909156020,-1085.0,0.00016042,2]
[380945557,1755909156030,-400.0,0.00016063,2]
[380945558,1755909156040,-150.0,0.00016078,2]
[380945559,1755909156050,-150.0,0.00016078,2]
[380945560,1755909156059,-500.0,0.00016135,2]
[380945561,1755909156069,-1000.0,0.00016135,2]
[380945562,1755909156078,-549.67,0.00016146,2]
[380945563,1755909156088,-150.0,0.00016163,2]
[380945564,1755909156098,-729.0,0.00016164,2]
[380945565,1755909156108,-765.0,0.00016164,2]
[380945566,1755909156118,-500.0,0.00016164,2]
[380945567,1755909156128,-500.0,0.00016164,2]
[380945568,1755909156138,-503.07448719,0.00016164,2]
[380945569,1755909156149,-1471.92,0.00016164,2]
[380945570,1755909156159,-400.0,0.00016164,2]
[380945571,1755909156169,-400.0,0.00016164,2]
[380945572,1755909156178,-603.48,0.00016164,2]
[380945573,1755909156187,-612.02,0.00016164,2]
[380945574,1755909156197,-448.19,0.00016164,2]
[380945575,1755909156208,-400.0,0.00016164,2]
[380945576,1755909156217,-400.0,0.00016164,2]
[380945577,1755909156227,-153.492172,0.00016164,2]
[380945578,1755909156236,-431.57,0.00016164,2]
[380945579,1755909156247,-400.0,0.00016164,2]
[380945580,1755909156257,-400.0,0.00016164,2]
[380945581,1755909156267,-434.66,0.00016164,2]
[380945582,1755909156276,-649.59,0.00016164,2]
[380945583,1755909156288,-681.46,0.00016164,2]
[380945584,1755909156297,-472.35,0.00016164,2]
[380945585,1755909156308,-400.0,0.00016164,2]
[380945586,1755909156318,-382.47,0.00016164,2]
[380945587,1755909156328,-409.04,0.00016164,2]
[380945588,1755909156339,-235.795947,0.00016164,2]
[380945589,1755909156348,-546.13,0.00016164,2]
[380945590,1755909156358,-534.48,0.00016164,2]
[380945591,1755909156367,-635.82,0.00016164,2]
[380945592,1755909156377,-476.99,0.00016164,2]
[380945593,1755909156387,-400.0,0.00016164,2]
[380945594,1755909156397,-400.0,0.00016164,2]
[380945595,1755909156406,-400.0,0.00016164,2]
[380945596,1755909156416,-507.78,0.00016164,2]
[380945597,1755909156426,-744.95,0.00016164,2]
[380945598,1755909156435,-590.74,0.00016164,2]
[380945599,1755909156445,-575.25,0.00016164,2]
[380945600,1755909156455,-990.54657,0.00016164,2]
[380945601,1755909156464,-400.0,0.00016164,2]
[380945602,1755909156473,-400.0,0.00016164,2]
[380945603,1755909156483,-400.0,0.00016164,2]
[380945604,1755909156493,-400.0,0.00016164,2]
[380945605,1755909156503,-400.0,0.00016164,2]
[380945606,1755909156512,-400.0,0.00016164,2]
[380945607,1755909156523,-400.0,0.00016164,2]
[380945608,1755909156532,-400.0,0.00016164,2]
[380945609,1755909156543,-410.44,0.00016164,2]
[380945610,1755909156553,-477.98,0.00016164,2]
[380945611,1755909156562,-692.3,0.00016164,2]
[380945612,1755909156572,-400.0,0.00016164,2]
[380945613,1755909156582,-600.48,0.00016164,2]
[380945614,1755909156591,-402.6,0.00016164,2]
[380945615,1755909156601,-400.0,0.00016164,2]
[380945616,1755909156610,-400.0,0.00016164,2]
[380945617,1755909156620,-685.13,0.00016164,2]
[380945618,1755909156629,-400.0,0.00016164,2]
[380945619,1755909156640,-400.0,0.00016164,2]
[380945620,1755909156650,-400.0,0.00016164,2]
[380945621,1755909156659,-400.0,0.00016164,2]
[380945622,1755909156668,-580.21,0.00016164,2]
[380945623,1755909156678,-400.0,0.00016164,2]
[380945624,1755909156687,-400.0,0.00016164,2]
[380945625,1755909156697,-400.0,0.00016164,2]
[380945626,1755909156706,-628.41,0.00016164,2]
[380945627,1755909156715,-699.23,0.00016164,2]
[380945628,1755909156725,-400.0,0.00016164,2]
[380945629,1755909156734,-469.22,0.00016164,2]
[380945630,1755909156744,-440.08,0.00016164,2]
[380945631,1755909156754,-622.9,0.00016164,2]
[380945632,1755909156763,-1031.94,0.00016164,2]
[380945633,1755909156773,-740.51,0.00016164,2]
[380945634,1755909156782,-400.0,0.00016164,2]
[380945635,1755909156793,-419.57,0.00016164,2]
[380945636,1755909156802,-511.83,0.00016164,2]
[380945637,1755909156811,-620.5,0.00016164,2]
[380945638,1755909156821,-608.92,0.00016164,2]
[380945639,1755909156830,-400.0,0.00016164,2]
[380945640,1755909156840,-738.22,0.00016164,2]
[380945641,1755909156849,-400.0,0.00016164,2]
[380945642,1755909156859,-699.72,0.00016164,2]
[380945643,1755909156869,-402.65,0.00016164,2]
[380945644,1755909156889,-566.41,0.00016164,2]
[380945645,1755909156905,-400.0,0.00016164,2]
[380945646,1755909156925,-692.55,0.00016164,2]
[380945647,1755909156945,-400.0,0.00016164,2]
[380945648,1755909156961,-400.0,0.00016164,2]
[380945649,1755909156980,-681.21,0.00016164,2]
[380945650,1755909157000,-400.0,0.00016164,2]
[380945651,1755909157021,-566.05,0.00016164,2]
[380945652,1755909157040,-461.28,0.00016164,2]
[380945653,1755909157059,-414.87,0.00016164,2]
[380945654,1755909157076,-400.0,0.00016164,2]
[380945655,1755909157091,-475.17,0.00016164,2]
[380945656,1755909157111,-489.89,0.00016164,2]
[380945657,1755909157124,-411.77,0.00016164,2]
[380945658,1755909157143,-400.0,0.00016164,2]
[380945659,1755909157156,-400.0,0.00016164,2]
[380945660,1755909157174,-410.23,0.00016164,2]
[380945661,1755909157189,-400.0,0.00016164,2]
[380945662,1755909157207,-400.0,0.00016164,2]
[380945663,1755909157223,-400.0,0.00016164,2]
[380945664,1755909157239,-422.54987065,0.00016164,2]
[380945665,1755909157256,-639.2,0.00016164,2]
[380945666,1755909157271,-477.58,0.00016164,2]
[380945667,1755909157286,-972.5,0.00016164,2]
[380945668,1755909157302,-414.05,0.00016164,2]
[380945669,1755909157318,-467.39,0.00016164,2]
[380945670,1755909157334,-400.0,0.00016164,2]
[380945671,1755909157349,-400.0,0.00016164,2]
[380945672,1755909157365,-667.14,0.00016164,2]
[380945673,1755909157381,-400.0,0.00016164,2]
[380945674,1755909157396,-532.87,0.00016164,2]
[380945675,1755909157410,-442.87,0.00016164,2]
[380945676,1755909157425,-788.52,0.00016164,2]
[380945677,1755909157441,-400.0,0.00016164,2]
[380945678,1755909157456,-413.86,0.00016164,2]
[380945679,1755909157471,-528.62,0.00016164,2]
[380945680,1755909157486,-211.19800171,0.00016164,2]
[380945681,1755909157501,-858.81,0.00016164,2]
[380945682,1755909157515,-400.0,0.00016164,2]
[380945683,1755909157531,-962.13,0.00016164,2]
[380945684,1755909157546,-640.39,0.00016164,2]
[380945685,1755909157562,-400.0,0.00016164,2]
[380945686,1755909157576,-400.0,0.00016164,2]
[380945687,1755909157591,-495.39,0.00016164,2]
[380945688,1755909157608,-431.15,0.00016164,2]
[380945689,1755909157623,-412.84,0.00016164,2]
[380945690,1755909157637,-469.42,0.00016164,2]
[380945691,1755909157653,-400.0,0.00016164,2]
[380945692,1755909157666,-1194.0,0.00016164,2]
[380945693,1755909157681,-400.0,0.00016164,2]
[380945694,1755909157696,-400.0,0.00016164,2]
[380945695,1755909157711,-719.77,0.00016164,2]
[380945696,1755909157726,-1072.22,0.00016164,2]
[380945697,1755909157741,-571.55,0.00016164,2]
[380945698,1755909157755,-402.59,0.00016164,2]
[380945699,1755909157771,-511.73,0.00016164,2]
[380945700,1755909157786,-400.0,0.00016164,2]
[380945701,1755909157801,-400.0,0.00016164,2]
[380945702,1755909157817,-796.82,0.00016164,2]
[380945703,1755909157832,-839.94,0.00016164,2]
[380945704,1755909157847,-697.65,0.00016164,2]
[380945705,1755909157861,-575.9,0.00016164,2]
[380945706,1755909157875,-486.14,0.00016164,2]
[380945707,1755909157890,-499.82,0.00016164,2]
[380945708,1755909157905,-400.0,0.00016164,2]
[380945709,1755909157920,-400.0,0.00016164,2]
[380945710,1755909157936,-400.0,0.00016164,2]
[380945711,1755909157951,-400.0,0.00016164,2]
[380945712,1755909157966,-400.0,0.00016164,2]
[380945713,1755909157980,-900.25,0.00016164,2]
[380945714,1755909157994,-814.32,0.00016164,2]
[380945715,1755909158012,-442.56,0.00016164,2]
[380945716,1755909158027,-529.89,0.00016164,2]
[380945717,1755909158042,-400.0,0.00016164,2]
[380945718,1755909158058,-400.0,0.00016164,2]
[380945719,1755909158073,-178.47049664,0.00016164,2]
[380945720,1755909158087,-1017.87,0.00016164,2]
[380945721,1755909158102,-273.03,0.00016164,2]
[380945722,1755909158117,-400.0,0.00016164,2]
[380945723,1755909158133,-657.79,0.00016164,2]
[380945724,1755909158148,-310.58946015,0.00016164,2]
[380945725,1755909158162,-638.0,0.00016164,2]
[380945726,1755909158176,-400.0,0.00016164,2]
[380945727,1755909158191,-410.77,0.00016164,2]
[380945728,1755909158207,-802.21,0.00016164,2]
[380945729,1755909158222,-400.0,0.00016164,2]
[380945730,1755909158238,-400.0,0.00016164,2]
[380945731,1755909158255,-574.55,0.00016164,2]
[380945732,1755909158270,-400.0,0.00016164,2]
[380945733,1755909158287,-400.0,0.00016164,2]
[380945734,1755909158302,-400.0,0.00016164,2]
[380945735,1755909158316,-548.25,0.00016164,2]
[380945736,1755909158331,-601.94,0.00016164,2]
[380945737,1755909158345,-733.18,0.00016164,2]
[380945738,1755909158360,-463.43,0.00016164,2]
[380945739,1755909158375,-614.24,0.00016164,2]
[380945740,1755909158390,-613.84,0.00016164,2]
[380945741,1755909158404,-466.72,0.00016164,2]
[380945742,1755909158418,-400.0,0.00016164,2]
[380945743,1755909158432,-400.0,0.00016164,2]
[380945744,1755909158447,-461.07,0.00016164,2]
[380945745,1755909158461,-416.42,0.00016164,2]
[380945746,1755909158483,-1025.78,0.00016164,2]
[380945747,1755909158497,-401.75,0.00016164,2]
[380945748,1755909158512,-834.47,0.00016164,2]
[380945749,1755909158527,-776.97,0.00016164,2]
[380945750,1755909158540,-614.04,0.00016164,2]
[380945751,1755909158555,-472.6,0.00016164,2]
[380945752,1755909158570,-602.14,0.00016164,2]
[380945753,1755909158584,-417.62,0.00016164,2]
[380945754,1755909158599,-400.0,0.00016164,2]
[380945755,1755909158613,-400.0,0.00016164,2]
[380945756,1755909158628,-854.31,0.00016164,2]
[380945757,1755909158644,-400.0,0.00016164,2]
[380945758,1755909158659,-400.0,0.00016164,2]
[380945759,1755909158673,-572.31,0.00016164,2]
[380945760,1755909158689,-419.61,0.00016164,2]
[380945761,1755909158703,-400.0,0.00016164,2]
[380945762,1755909158717,-585.48,0.00016164,2]
[380945763,1755909158732,-488.58,0.00016164,2]
[380945764,1755909158747,-713.34,0.00016164,2]
[380945765,1755909158762,-400.0,0.00016164,2]
[380945766,1755909158776,-869.4,0.00016164,2]
[380945767,1755909158791,-756.22,0.00016164,2]
[380945768,1755909158805,-400.0,0.00016164,2]
[380945769,1755909158820,-494.08,0.00016164,2]
[380945770,1755909158835,-400.0,0.00016164,2]
[380945771,1755909158849,-613.84,0.00016164,2]
[380945772,1755909158863,-400.0,0.00016164,2]
[380945773,1755909158878,-493.02,0.00016164,2]
[380945774,1755909158892,-574.35,0.00016164,2]
[380945775,1755909158907,-993.54,0.00016164,2]
[380945776,1755909158922,-518.26,0.00016164,2]
[380945777,1755909158936,-665.46,0.00016164,2]
[380945778,1755909158952,-587.28,0.00016164,2]
[380945779,1755909158967,-735.95,0.00016164,2]
[380945780,1755909158982,-400.0,0.00016164,2]
[380945781,1755909158996,-615.67,0.00016164,2]
[380945782,1755909159011,-400.0,0.00016164,2]
[380945783,1755909159025,-448.79,0.00016164,2]
[380945784,1755909159041,-400.0,0.00016164,2]
[380945785,1755909159056,-983.83,0.00016164,2]
[380945786,1755909159072,-442.91,0.00016164,2]
[380945787,1755909159086,-590.43,0.00016164,2]
[380945788,1755909159101,-794.38,0.00016164,2]
[380945789,1755909159116,-400.0,0.00016164,2]
[380945790,1755909159132,-444.08,0.00016164,2]
[380945791,1755909159147,-546.25,0.00016164,2]
[380945792,1755909159161,-529.58,0.00016164,2]
[380945793,1755909159176,-703.24,0.00016164,2]
[380945794,1755909159191,-849.18,0.00016164,2]
[380945795,1755909159207,-876.02,0.00016164,2]
[380945796,1755909159223,-400.0,0.00016164,2]
[380945797,1755909159238,-492.86,0.00016164,2]
[380945798,1755909159253,-476.2,0.00016164,2]
[380945799,1755909159269,-756.77,0.00016164,2]
[380945800,1755909159284,-788.72,0.00016164,2]
[380945801,1755909159301,-754.08,0.00016164,2]
[380945802,1755909159316,-815.73,0.00016164,2]
[380945803,1755909159331,-400.0,0.00016164,2]
[380945804,1755909159346,-400.0,0.00016164,2]
[380945805,1755909159362,-400.0,0.00016164,2]
[380945806,1755909159718,-896.11,0.00016164,2]
[380945807,1755909159730,-1011.99,0.00016164,2]
[380945808,1755909159739,-509.28,0.00016164,2]
[380945809,1755909159748,-859.21,0.00016164,2]
[380945810,1755909159758,-640.92,0.00016164,2]
[380945811,1755909159767,-1075.32,0.00016164,2]
[380945812,1755909159776,-400.0,0.00016164,2]
[380945813,1755909159786,-901.15,0.00016164,2]
[380945814,1755909159796,-411.47,0.00016164,2]
[380945815,1755909159805,-400.0,0.00016164,2]
[380945816,1755909159815,-725.33,0.00016164,2]
[380945817,1755909159824,-577.79,0.00016164,2]
[380945818,1755909159833,-421.13,0.00016164,2]
[380945819,1755909159843,-425.58,0.00016164,2]
[380945820,1755909159852,-781.05,0.00016164,2]
[380945821,1755909159861,-606.08,0.00016164,2]
[380945822,1755909159870,-771.47,0.00016164,2]
[380945823,1755909159880,-475.64,0.00016164,2]
[380945824,1755909159889,-632.28,0.00016164,2]
[380945825,1755909159899,-400.0,0.00016164,2]
[380945826,1755909159908,-552.73,0.00016164,2]
[380945827,1755909159917,-702.38,0.00016164,2]
[380945828,1755909159927,-866.41,0.00016164,2]
[380945829,1755909159936,-400.0,0.00016164,2]
[380945830,1755909159945,-758.47,0.00016164,2]
[380945831,1755909159954,-677.52,0.00016164,2]
[380945832,1755909159963,-400.0,0.00016164,2]
[380945833,1755909159973,-400.0,0.00016164,2]
[380945834,1755909159982,-483.75,0.00016164,2]
[380945835,1755909159992,-400.0,0.00016164,2]
[380945836,1755909160002,-620.99,0.00016164,2]
[380945837,1755909160011,-758.84,0.00016164,2]
[380945838,1755909160022,-424.0,0.00016164,2]
[380945839,1755909160032,-779.18,0.00016164,2]
[380945840,1755909160044,-507.28,0.00016164,2]
[380945841,1755909160053,-400.0,0.00016164,2]
[380945842,1755909160063,-987.41,0.00016164,2]
[380945843,1755909160072,-400.0,0.00016164,2]
[380945844,1755909160082,-400.0,0.00016164,2]
[380945845,1755909160091,-706.05,0.00016164,2]
[380945846,1755909160100,-3029.47,0.00016164,2]
[380945847,1755909160110,-841.05,0.00016164,2]
[380945848,1755909160119,-869.31,0.00016164,2]
[380945849,1755909160129,-640.38,0.00016164,2]
[380945850,1755909160138,-400.0,0.00016164,2]
[380945851,1755909160147,-498.91,0.00016164,2]
[380945852,1755909160156,-615.48,0.00016164,2]
[380945853,1755909160166,-400.0,0.00016164,2]
[380945854,1755909160175,-400.0,0.00016164,2]
[380945855,1755909160184,-503.02,0.00016164,2]
[380945856,1755909160193,-445.28,0.00016164,2]
[380945857,1755909160202,-426.86,0.00016164,2]
[380945858,1755909160216,-577.61,0.00016164,2]
[380945859,1755909160226,-450.11,0.00016164,2]
[380945860,1755909160235,-990.96,0.00016164,2]
[380945861,1755909160245,-220.22888149,0.00016164,2]
[380945862,1755909160254,-931.14,0.00016164,2]
[380945863,1755909160264,-400.0,0.00016164,2]
[380945864,1755909160273,-554.12,0.00016164,2]
[380945865,1755909160283,-576.72,0.00016164,2]
[380945866,1755909160294,-646.79,0.00016164,2]
[380945867,1755909160304,-737.38,0.00016164,2]
[380945868,1755909160313,-400.0,0.00016164,2]
[380945869,1755909160322,-400.0,0.00016164,2]
[380945870,1755909160331,-400.0,0.00016164,2]
[380945871,1755909160341,-400.0,0.00016164,2]
[380945872,1755909160351,-862.27,0.00016164,2]
[380945873,1755909160361,-658.4,0.00016164,2]
[380945874,1755909160371,-400.0,0.00016164,2]
[380945875,1755909160381,-400.0,0.00016164,2]
[380945876,1755909160391,-445.91,0.00016164,2]
[380945877,1755909160400,-595.17,0.00016164,2]
[380945878,1755909160410,-492.65,0.00016164,2]
[380945879,1755909160419,-720.25,0.00016164,2]
[380945880,1755909160429,-884.95,0.00016164,2]
[380945881,1755909160439,-600.7,0.00016164,2]
[380945882,1755909160448,-400.0,0.00016164,2]
[380945883,1755909160458,-764.74,0.00016164,2]
[380945884,1755909160467,-891.98,0.00016164,2]
[380945885,1755909160477,-622.74,0.00016164,2]
[380945886,1755909160486,-400.0,0.00016164,2]
[380945887,1755909160496,-874.86,0.00016164,2]
[380945888,1755909160505,-451.38,0.00016164,2]
[380945889,1755909160515,-400.0,0.00016164,2]
[380945890,1755909160524,-560.28,0.00016164,2]
[380945891,1755909160533,-400.0,0.00016164,2]
[380945892,1755909160543,-708.79,0.00016164,2]
[380945893,1755909160553,-667.54,0.00016164,2]
[380945894,1755909160562,-528.48,0.00016164,2]
[380945895,1755909160572,-532.35470109,0.00016164,2]
[380945896,1755909160581,-400.0,0.00016164,2]
[380945897,1755909160590,-400.0,0.00016164,2]
[380945898,1755909160600,-519.95,0.00016164,2]
[380945899,1755909160609,-870.46,0.00016164,2]
[380945900,1755909160618,-808.28,0.00016164,2]
[380945901,1755909160627,-593.4,0.00016164,2]
[380945902,1755909160636,-554.4,0.00016164,2]
[380945903,1755909160646,-605.98,0.00016164,2]
[380945904,1755909160655,-707.1,0.00016164,2]
[380945905,1755909160665,-731.67,0.00016164,2]
[380945906,1755909160674,-400.0,0.00016164,2]
[380945907,1755909160684,-689.12,0.00016164,2]
[380945908,1755909160693,-400.0,0.00016164,2]
[380945909,1755909160702,-400.0,0.00016164,2]
[380945910,1755909160711,-400.0,0.00016164,2]
[380945911,1755909160721,-1723.92,0.00016164,2]
[380945912,1755909160730,-601.13,0.00016164,2]
[380945913,1755909160739,-791.71,0.00016164,2]
[380945914,1755909160749,-571.32,0.00016164,2]
[380945915,1755909160758,-433.13,0.00016164,2]
[380945916,1755909160768,-976.99,0.00016164,2]
[380945917,1755909160777,-857.87,0.00016164,2]
[380945918,1755909160787,-524.16,0.00016164,2]
[380945919,1755909160797,-400.0,0.00016164,2]
[380945920,1755909160807,-425.0249252,0.00016164,2]
[380945921,1755909160816,-763.62,0.00016164,2]
[380945922,1755909160825,-400.0,0.00016164,2]
[380945923,1755909160835,-956.1,0.00016164,2]
[380945924,1755909160844,-557.4,0.00016164,2]
[380945925,1755909160854,-526.88,0.00016164,2]
[380945926,1755909160863,-778.36,0.00016164,2]
[380945927,1755909160873,-424.56,0.00016164,2]
[380945928,1755909160882,-1050.46,0.00016164,2]
[380945929,1755909160892,-733.75,0.00016164,2]
[380945930,1755909160902,-519.43,0.00016164,2]
[380945931,1755909160912,-227.61070735,0.00016164,2]
[380945932,1755909160921,-970.43,0.00016164,2]
[380945933,1755909160931,-1054.58,0.00016164,2]
[380945934,1755909160940,-546.29,0.00016164,2]
[380945935,1755909160949,-640.8,0.00016164,2]
[380945936,1755909160959,-400.0,0.00016164,2]
[380945937,1755909160968,-610.91,0.00016164,2]
[380945938,1755909160978,-400.0,0.00016164,2]
[380945939,1755909160987,-582.36,0.00016164,2]
[380945940,1755909160996,-832.07,0.00016164,2]
[380945941,1755909161006,-1000.0,0.00016164,2]
[380945942,1755909161015,-401.5,0.00016164,2]
[380945943,1755909161026,-400.0,0.00016164,2]
[380945944,1755909161035,-445.27,0.00016164,2]
[380945945,1755909161046,-997.13,0.00016164,2]
[380945946,1755909161056,-644.56,0.00016164,2]
[380945947,1755909161065,-453.25,0.00016164,2]
[380945948,1755909161075,-707.89,0.00016164,2]
[380945949,1755909161085,-715.18,0.00016164,2]
[380945950,1755909161094,-685.45,0.00016164,2]
[380945951,1755909161103,-400.0,0.00016164,2]
[380945952,1755909161112,-44.25296915,0.00016164,2]
[380945953,1755909162170,-58.12186678,0.00015616,2]
[380945954,1755909163755,157.415,0.00028767,120]
[380945956,1755909195846,5000.0,0.0001,2]
[380945962,1755909395258,311075.51,0.0001616,120]
[380945964,1755909619948,203.48886343,0.00024658,120]
[380945965,1755909620195,159.0,0.00021918,120]
[380945966,1755909620536,153.0,0.00024658,120]
[380945967,1755909620762,241.79529973,0.00021918,120]
[380945968,1755909621179,153.0,0.00024658,120]
[380945969,1755909621749,153.0,0.00024658,120]
[380945972,1755909634765,154.0,0.0001616,120]
[380945973,1755909635288,154.0,0.0001616,120]
[380945974,1755909635891,154.0,0.0001616,120]
[380945978,1755909905292,165.07323071,0.00021918,120]
[380945979,1755909905855,154.0,0.00021918,120]
[380945980,1755909906704,154.0,0.00021918,120]
[380945982,1755910049301,160.0,0.00011116,7]
[380945983,1755910123874,-400.0,0.000137,5]
[380945984,1755910123896,-800.0,0.000138,5]
[380945985,1755910123916,-1200.0,0.000139,5]
[380945986,1755910124136,-1700.0,0.000148,5]
[380945987,1755910124160,-2100.0,0.000149,5]
[380945992,1755910231826,-182.19,0.000109,2]
[380945993,1755910231837,-310.0,0.0001095,2]
[380945994,1755910231848,-5000.0,0.00011,2]
[380945995,1755910231858,-1852.42,0.000111,2]
[380945996,1755910231868,-1200.0,0.00011309,2]
[380945997,1755910231877,-300.0,0.00011309,2]
[380945998,1755910231887,-5116.57,0.00011311,2]
[380945999,1755910231896,-4121.38656901,0.00011531,2]
[380946000,1755910231906,-150.0,0.0001154,2]
[380946001,1755910231916,-71929.97093785,0.00011541,2]
[380946002,1755910231928,-5050.80888743,0.00011541,2]
[380946003,1755910231938,-1144.3,0.0001182,2]
[380946004,1755910231948,-1694.27031771,0.00011862,2]
[380946005,1755910231957,-633.36268717,0.00011862,2]
[380946006,1755910231968,-500.0,0.00011955,2]
[380946007,1755910231978,-500.0,0.00011961,2]
[380946008,1755910231987,-500.0,0.00011961,2]
[380946009,1755910231997,-431.46450647,0.00011961,2]
[380946010,1755910232007,-230.49114042,0.00011961,2]
[380946011,1755910232016,-500.0,0.00011961,2]
[380946012,1755910232026,-500.0,0.00011961,2]
[380946013,1755910232035,-591.39838039,0.00011961,2]
[380946014,1755910232044,-200.75997594,0.00011961,2]
[380946015,1755910232054,-500.0,0.00011961,2]
[380946016,1755910232063,-293.5211727,0.00011961,2]
[380946018,1755910232073,-2751.0,0.00011962,2]
[380946020,1755910232083,-15987.77419909,0.00011962,2]
[380946051,1755910237699,-2832.50531289,0.00011962,2]
[380946057,1755910240000,-136928.07048802,0.00011962,2]
[380946058,1755910240011,-17017.17250131,0.00011962,2]
[380946059,1755910240022,-38007.39,0.00011969,2]
[380946060,1755910240034,-150.0,0.00011973,2]
[380946061,1755910240044,-500.0,0.0001199,2]
[380946062,1755910240055,-250.0,0.0001199,2]
[380946063,1755910240065,-310.0,0.0001199,2]
[380946064,1755910240075,-166.48,0.00011991,2]
[380946065,1755910240086,-500.0,0.0001201,2]
[380946066,1755910240098,-250.0,0.00012055,2]
[380946067,1755910240109,-3896.66,0.0001206,2]